fUSD/lending_fUSD_20240606
["ID","MTS","AMOUNT","RATE_DAILY","PERIOD"]
[328642059,1717659049108,-7607.699988,0.00028892,7]
[328642060,1717659049118,-585.565116,0.00028892,7]
[328642061,1717659049128,-175.582608,0.00028892,7]
[328642062,1717659049137,-7607.699988,0.00028892,7]
[328642063,1717659049146,-585.565116,0.00028892,7]
[328642064,1717659049157,-151.0,0.00028892,7]
[328642065,1717659049166,-175.582608,0.00028892,7]
[328642066,1717659049175,-151.0,0.00028892,7]
[328642067,1717659049185,-348.828489,0.00028892,7]
[328642068,1717659049195,-151.0,0.00028892,7]
[328642069,1717659049204,-348.828489,0.00028892,7]
[328642070,1717659049213,-151.0,0.00028892,7]
[328642071,1717659049222,-151.0,0.00028892,7]
[328642072,1717659049232,-151.0,0.00028892,7]
[328642073,1717659049242,-151.0,0.00028892,7]
[328642074,1717659049252,-151.0,0.00028892,7]
[328642075,1717659049262,-1015.520363,0.00028892,7]
[328642076,1717659049272,-1015.520363,0.00028892,7]
[328642077,1717659049282,-332.724879,0.00028892,7]
[328642078,1717659049291,-332.724879,0.00028892,7]
[328642079,1717659049301,-151.0,0.00028892,7]
[328642080,1717659049311,-261.15557,0.00028892,7]
[328642081,1717659049320,-151.0,0.00028892,7]
[328642082,1717659049329,-261.15557,0.00028892,7]
[328642083,1717659049339,-151.0,0.00028892,7]
[328642084,1717659049349,-184.936114,0.00028892,7]
[328642085,1717659049358,-321.932562,0.00028892,7]
[328642086,1717659049368,-398.509368,0.00028892,7]
[328642087,1717659049377,-184.936114,0.00028892,7]
[328642088,1717659049388,-321.932562,0.00028892,7]
[328642089,1717659049398,-398.509368,0.00028892,7]
[328642090,1717659049407,-280.162191,0.00028892,7]
[328642091,1717659049416,-183.0,0.00028892,2]
[328642092,1717659049427,-176.0,0.00028892,2]
[328642093,1717659049436,-798.852,0.00028892,2]
[328642094,1717659049445,-1064.0,0.00028892,2]
[328642095,1717659049455,-290.0,0.00028892,2]
[328642096,1717659049465,-5151.0,0.00028892,2]
[328642097,1717659049474,-5778.0,0.00028892,2]
[328642098,1717659049485,-165.22792872,0.00028899,10]
[328642099,1717659049495,-53006.27321905,0.000289,2]
[328642100,1717659049506,-151.0,0.000289,7]
[328642101,1717659049516,-206.640717,0.000289,7]
[328642102,1717659049525,-206.640717,0.000289,7]
[328642103,1717659049535,-6799.05034124,0.000289,2]
[328642104,1717659049545,-151.0,0.00028959,7]
[328642105,1717659049555,-159.895996,0.0002897,7]
[328642106,1717659049566,-151.0,0.0002897,7]
[328642107,1717659049576,-151.0,0.0002897,7]
[328642108,1717659049588,-151.0,0.0002897,7]
[328642109,1717659049597,-151.0,0.0002897,7]
[328642110,1717659049607,-1015.520363,0.0002897,7]
[328642111,1717659049616,-1015.520363,0.0002897,7]
[328642112,1717659049626,-332.724879,0.0002897,7]
[328642113,1717659049635,-332.724879,0.0002897,7]
[328642114,1717659049645,-261.098045,0.0002897,7]
[328642115,1717659049654,-261.15557,0.0002897,7]
[328642116,1717659049663,-151.0,0.0002897,7]
[328642117,1717659049673,-261.15557,0.0002897,7]
[328642118,1717659049682,-227.567578,0.0002897,7]
[328642119,1717659049692,-184.936114,0.0002897,7]
[328642120,1717659049701,-398.509368,0.0002897,7]
[328642121,1717659049710,-321.932562,0.0002897,7]
[328642122,1717659049719,-184.936114,0.0002897,7]
[328642123,1717659049729,-321.932562,0.0002897,7]
[328642124,1717659049738,-398.509368,0.0002897,7]
[328642125,1717659049747,-280.162191,0.0002897,7]
[328642126,1717659049758,-151.27,0.0002898,15]
[328642127,1717659049773,-1000.0,0.0002899,7]
[328642128,1717659049782,-15444.56358067,0.00028991,2]
[328642129,1717659049792,-1487.67918963,0.00029,2]
[328642130,1717659049803,-1998.34885157,0.00029,2]
[328642131,1717659049812,-176.83322562,0.00029,2]
[328642132,1717659049822,-500.0,0.00029,2]
[328642133,1717659049916,-1203.16064025,0.00029,2]
[328642134,1717659049925,-257.9281574,0.00029,2]
[328642135,1717659049934,-446.70319109,0.00029,2]
[328642136,1717659049944,-34966.97943608,0.00029,2]
[328642137,1717659049953,-30788.40930707,0.00029,2]
[328642138,1717659049962,-52797.54559298,0.00029,2]
[328642139,1717659049972,-1508.221494,0.00029,7]
[328642140,1717659049981,-2236.0,0.00029,3]
[328642141,1717659049990,-342.27440401,0.00029,2]
[328642142,1717659050000,-218.76919722,0.00029,2]
[328642143,1717659050011,-155.0,0.00029,2]
[328642144,1717659050020,-1042.16808619,0.00029,2]
[328642145,1717659050029,-19769.39955785,0.00029,2]
[328642146,1717659050039,-1046.53950054,0.00029,2]
[328642147,1717659050048,-155.0,0.00029,7]
[328642148,1717659050058,-1071.96002752,0.00029,2]
[328642149,1717659050067,-52513.6432065,0.00029,2]
[328642150,1717659050077,-4182.02459274,0.00029,2]
[328642151,1717659050086,-151.0,0.00029,7]
[328642152,1717659050096,-151.0,0.00029,7]
[328642153,1717659050105,-151.0,0.00029,7]
[328642154,1717659050114,-151.0,0.00029,7]
[328642155,1717659050124,-151.0,0.00029,7]
[328642156,1717659050133,-270.379917,0.00029,7]
[328642157,1717659050142,-270.379917,0.00029,7]
[328642158,1717659050152,-151.0,0.00029,7]
[328642159,1717659050161,-1219.82916,0.00029,7]
[328642160,1717659050170,-151.0,0.00029,7]
[328642161,1717659050179,-207.79448,0.00029,7]
[328642162,1717659050188,-1219.82916,0.00029,7]
[328642163,1717659050198,-499.3199,0.00029,7]
[328642164,1717659050208,-207.79448,0.00029,7]
[328642165,1717659050217,-499.3199,0.00029,7]
[328642166,1717659050226,-178.40789883,0.00029,2]
[328642167,1717659050235,-151.0,0.00029,7]
[328642168,1717659050244,-151.0,0.00029,7]
[328642169,1717659050254,-151.0,0.00029,7]
[328642170,1717659050263,-151.0,0.00029,7]
[328642171,1717659050272,-151.0,0.00029,7]
[328642172,1717659050281,-823.497835,0.00029,7]
[328642173,1717659050291,-151.0,0.00029,7]
[328642174,1717659050300,-151.0,0.00029,7]
[328642175,1717659050309,-758.230552,0.00029,7]
[328642176,1717659050318,-758.230552,0.00029,7]
[328642177,1717659050328,-151.0,0.00029,7]
[328642178,1717659050337,-151.0,0.00029,7]
[328642179,1717659050347,-1652.913549,0.00029,7]
[328642180,1717659050355,-1652.913549,0.00029,7]
[328642181,1717659050365,-151.578611,0.00029,7]
[328642182,1717659050383,-1004.642672,0.00029,7]
[328642183,1717659050394,-151.578611,0.00029,7]
[328642184,1717659050404,-1004.642672,0.00029,7]
[328642185,1717659050414,-151.0,0.00029,7]
[328642186,1717659050423,-151.0,0.00029,7]
[328642187,1717659050434,-279.778116,0.00029,7]
[328642188,1717659050444,-531.319097,0.00029,7]
[328642189,1717659050454,-279.778116,0.00029,7]
[328642190,1717659050464,-531.319097,0.00029,7]
[328642191,1717659050474,-151.0,0.00029,7]
[328642192,1717659050483,-151.0,0.00029,7]
[328642193,1717659050493,-151.0,0.00029,7]
[328642194,1717659050503,-151.0,0.00029,7]
[328642195,1717659050514,-202.905709,0.00029,7]
[328642196,1717659050523,-202.905709,0.00029,7]
[328642197,1717659050533,-151.0,0.00029,7]
[328642198,1717659050542,-151.0,0.00029,7]
[328642199,1717659050552,-263.100876,0.00029,7]
[328642200,1717659050561,-152.887669,0.00029,7]
[328642201,1717659050570,-152.887669,0.00029,7]
[328642202,1717659050579,-828.440947,0.00029,7]
[328642203,1717659050589,-357.085294,0.00029,7]
[328642204,1717659050598,-151.0,0.00029,7]
[328642205,1717659050608,-357.085294,0.00029,7]
[328642206,1717659050618,-350.0,0.00029,7]
[328642207,1717659050627,-1523.119791,0.00029,7]
[328642208,1717659050637,-350.0,0.00029,7]
[328642209,1717659050646,-1523.119791,0.00029,7]
[328642210,1717659050656,-151.0,0.00029,7]
[328642211,1717659050665,-276.544958,0.00029,7]
[328642212,1717659050674,-276.544958,0.00029,7]
[328642213,1717659050684,-151.0,0.00029,7]
[328642214,1717659050693,-151.0,0.00029,7]
[328642215,1717659050704,-151.0,0.00029,7]
[328642216,1717659050714,-151.0,0.00029,7]
[328642217,1717659050723,-151.0,0.00029,7]
[328642218,1717659050733,-302.076235,0.00029,7]
[328642219,1717659050743,-302.076235,0.00029,7]
[328642220,1717659050752,-999.620556,0.00029,7]
[328642221,1717659050765,-214.855669,0.00029,7]
[328642222,1717659050776,-999.620556,0.00029,7]
[328642223,1717659050786,-214.855669,0.00029,7]
[328642224,1717659050795,-178.253718,0.00029,7]
[328642225,1717659050806,-151.0,0.00029,7]
[328642226,1717659050815,-178.253718,0.00029,7]
[328642227,1717659050825,-238.537925,0.00029,7]
[328642228,1717659050835,-308.55583,0.00029,7]
[328642229,1717659050846,-1753.57585,0.00029,7]
[328642230,1717659050855,-308.55583,0.00029,7]
[328642231,1717659050866,-1753.57585,0.00029,7]
[328642232,1717659050876,-216.753933,0.00029,7]
[328642233,1717659050886,-189.935219,0.00029,7]
[328642234,1717659050895,-219.933493,0.00029,7]
[328642235,1717659050904,-189.935219,0.00029,7]
[328642236,1717659050914,-219.933493,0.00029,7]
[328642237,1717659050924,-630.921759,0.00029,7]
[328642238,1717659050933,-151.0,0.00029,7]
[328642239,1717659050942,-630.921759,0.00029,7]
[328642240,1717659050952,-829.215337,0.00029,7]
[328642241,1717659050961,-829.215337,0.00029,7]
[328642242,1717659050970,-151.0,0.00029,7]
[328642243,1717659050979,-259.689758,0.00029,7]
[328642244,1717659050988,-151.0,0.00029,7]
[328642245,1717659050998,-677.573868,0.00029,7]
[328642246,1717659051009,-259.689758,0.00029,7]
[328642247,1717659051019,-677.573868,0.00029,7]
[328642248,1717659051028,-276.722064,0.00029,7]
[328642249,1717659051038,-151.0,0.00029,7]
[328642250,1717659051047,-7607.699988,0.00029,7]
[328642251,1717659051056,-585.565116,0.00029,7]
[328642252,1717659051066,-175.582608,0.00029,7]
[328642253,1717659051075,-585.565116,0.00029,7]
[328642254,1717659051085,-7607.699988,0.00029,7]
[328642255,1717659051096,-175.582608,0.00029,7]
[328642256,1717659051105,-151.0,0.00029,7]
[328642257,1717659051114,-348.828489,0.00029,7]
[328642258,1717659051124,-348.828489,0.00029,7]
[328642259,1717659051134,-151.0,0.00029,7]
[328642260,1717659051144,-1350.0,0.00029,2]
[328642261,1717659051153,-151.0,0.0002903,7]
[328642262,1717659051162,-151.0,0.0002903,7]
[328642263,1717659051172,-151.0,0.0002903,7]
[328642264,1717659051181,-151.0,0.0002903,7]
[328642265,1717659051191,-182.893283,0.00029064,2]
[328642266,1717659051200,-213.731204,0.00029064,2]
[328642267,1717659051209,-180.351856,0.00029064,2]
[328642268,1717659051219,-5959.538194,0.00029064,2]
[328642269,1717659051331,-408.211011,0.00029064,2]
[328642270,1717659051341,-286.230045,0.00029064,2]
[328642271,1717659051350,-7863.350006,0.00029064,2]
[328642272,1717659051360,-6328.538745,0.00029064,2]
[328642273,1717659051369,-2848.446933,0.00029064,2]
[328642274,1717659051378,-161.564665,0.00029064,2]
[328642275,1717659051387,-186.101953,0.00029064,2]
[328642276,1717659051396,-1336.402371,0.00029064,2]
[328642277,1717659051406,-2958.598106,0.00029064,2]
[328642278,1717659051415,-160.988648,0.00029064,2]
[328642279,1717659051429,-198.60423,0.00029064,2]
[328642280,1717659051439,-8996.011854,0.00029064,2]
[328642281,1717659051449,-9008.36855926,0.00029064,2]
[328642282,1717659051685,-4076.97203774,0.00029064,2]
[328642283,1717659051694,-1858.513787,0.00029064,2]
[328642284,1717659051704,-151.942254,0.00029064,7]
[328642285,1717659051714,-206.640717,0.00029064,7]
[328642286,1717659051723,-206.640717,0.00029064,7]
[328642287,1717659051739,-219.933493,0.00029064,7]
[328642288,1717659051763,-219.933493,0.00029064,7]
[328642289,1717659051780,-630.921759,0.00029064,7]
[328642290,1717659051800,-151.0,0.00029064,7]
[328642291,1717659051821,-630.921759,0.00029064,7]
[328642292,1717659051838,-829.215337,0.00029064,7]
[328642293,1717659051856,-829.215337,0.00029064,7]
[328642294,1717659051873,-151.0,0.00029064,7]
[328642295,1717659051887,-259.689758,0.00029064,7]
[328642296,1717659051905,-236.185228,0.00029064,7]
[328642297,1717659051925,-677.573868,0.00029064,7]
[328642298,1717659051938,-259.689758,0.00029064,7]
[328642299,1717659051952,-677.573868,0.00029064,7]
[328642300,1717659051970,-151.0,0.00029064,7]
[328642301,1717659051986,-7607.699988,0.00029064,7]
[328642302,1717659052003,-585.565116,0.00029064,7]
[328642303,1717659052017,-175.582608,0.00029064,7]
[328642304,1717659052033,-585.565116,0.00029064,7]
[328642305,1717659052048,-7607.699988,0.00029064,7]
[328642306,1717659052063,-175.582608,0.00029064,7]
[328642307,1717659052077,-151.0,0.00029064,7]
[328642308,1717659052092,-348.828489,0.00029064,7]
[328642309,1717659052108,-348.828489,0.00029064,7]
[328642310,1717659052122,-151.0,0.00029064,7]
[328642311,1717659052137,-151.0,0.00029064,7]
[328642312,1717659052152,-151.0,0.00029064,7]
[328642313,1717659052168,-151.0,0.00029064,7]
[328642314,1717659052182,-151.0,0.00029064,7]
[328642315,1717659052197,-1015.520363,0.00029064,7]
[328642316,1717659052213,-1015.520363,0.00029064,7]
[328642317,1717659052229,-332.724879,0.00029064,7]
[328642318,1717659052242,-332.724879,0.00029064,7]
[328642319,1717659052259,-261.15557,0.00029064,7]
[328642320,1717659052273,-151.0,0.00029064,7]
[328642321,1717659052291,-261.15557,0.00029064,7]
[328642322,1717659052305,-184.936114,0.00029064,7]
[328642323,1717659052320,-398.509368,0.00029064,7]
[328642324,1717659052334,-321.932562,0.00029064,7]
[328642325,1717659052351,-184.936114,0.00029064,7]
[328642326,1717659052367,-321.932562,0.00029064,7]
[328642327,1717659052383,-398.509368,0.00029064,7]
[328642328,1717659052394,-280.162191,0.00029064,7]
[328642329,1717659052404,-150.0,0.00029099,2]
[328642330,1717659052414,-160.0,0.000291,2]
[328642331,1717659052424,-150.0,0.000291,2]
[328642332,1717659052433,-200.0,0.000291,2]
[328642333,1717659052443,-150.0,0.000291,6]
[328642334,1717659052452,-342.63134256,0.0002912,7]
[328642335,1717659052461,-101915.13199487,0.0002913,10]
[328642336,1717659052471,-19345.00304695,0.0002913,10]
[328642337,1717659052480,-151.0,0.0002913,7]
[328642338,1717659052490,-151.0,0.0002913,7]
[328642339,1717659052500,-151.0,0.0002913,7]
[328642340,1717659052510,-170.804632,0.0002913,7]
[328642341,1717659052519,-156.84881,0.0002913,7]
[328642342,1717659052529,-156.84881,0.0002913,7]
[328642343,1717659052538,-151.0,0.0002913,7]
[328642344,1717659052548,-151.0,0.0002913,7]
[328642345,1717659052558,-151.0,0.0002913,7]
[328642346,1717659052567,-151.0,0.0002913,7]
[328642347,1717659052577,-151.0,0.0002913,7]
[328642348,1717659052586,-151.0,0.0002913,7]
[328642349,1717659052800,-151.0,0.0002913,7]
[328642350,1717659052820,-151.0,0.0002913,7]
[328642351,1717659052830,-270.379917,0.0002913,7]
[328642352,1717659052842,-270.379917,0.0002913,7]
[328642353,1717659052851,-151.0,0.0002913,7]
[328642354,1717659052861,-1219.82916,0.0002913,7]
[328642355,1717659052870,-151.0,0.0002913,7]
[328642356,1717659052879,-1219.82916,0.0002913,7]
[328642357,1717659052888,-207.79448,0.0002913,7]
[328642358,1717659052897,-499.3199,0.0002913,7]
[328642359,1717659052906,-207.79448,0.0002913,7]
[328642360,1717659052916,-499.3199,0.0002913,7]
[328642361,1717659052924,-151.0,0.0002913,7]
[328642362,1717659052935,-151.0,0.0002913,7]
[328642363,1717659052944,-151.0,0.0002913,7]
[328642364,1717659052954,-151.0,0.0002913,7]
[328642365,1717659052963,-151.0,0.0002913,7]
[328642366,1717659052972,-823.497835,0.0002913,7]
[328642367,1717659052982,-823.497835,0.0002913,7]
[328642368,1717659052992,-151.0,0.0002913,7]
[328642369,1717659053002,-151.0,0.0002913,7]
[328642370,1717659053014,-758.230552,0.0002913,7]
[328642371,1717659053023,-758.230552,0.0002913,7]
[328642372,1717659053033,-151.0,0.0002913,7]
[328642373,1717659053043,-151.0,0.0002913,7]
[328642374,1717659053052,-1652.913549,0.0002913,7]
[328642375,1717659053061,-1652.913549,0.0002913,7]
[328642376,1717659053071,-151.578611,0.0002913,7]
[328642377,1717659053080,-1004.642672,0.0002913,7]
[328642378,1717659053090,-151.578611,0.0002913,7]
[328642379,1717659053099,-1004.642672,0.0002913,7]
[328642380,1717659053108,-151.0,0.0002913,7]
[328642381,1717659053118,-151.0,0.0002913,7]
[328642382,1717659053128,-279.778116,0.0002913,7]
[328642383,1717659053138,-531.319097,0.0002913,7]
[328642384,1717659053148,-279.778116,0.0002913,7]
[328642385,1717659053157,-531.319097,0.0002913,7]
[328642386,1717659053166,-150.0,0.00029178,2]
[328642387,1717659053175,-282.58,0.00029178,2]
[328642388,1717659053185,-300.0,0.00029178,2]
[328642389,1717659053194,-150.48,0.00029178,2]
[328642390,1717659053203,-300.0,0.00029178,2]
[328642391,1717659053213,-440.38,0.00029178,2]
[328642392,1717659053222,-500.0,0.000292,2]
[328642393,1717659053233,-939.07,0.000292,2]
[328642394,1717659053243,-302.0,0.00029217,4]
[328642395,1717659053252,-500.0,0.000293,2]
[328642396,1717659053266,-839.85,0.000293,2]
[328642397,1717659053275,-221.0,0.0002932,2]
[328642398,1717659053285,-226.0,0.0002932,2]
[328642399,1717659053295,-221.0,0.0002932,2]
[328642400,1717659053304,-205.0,0.0002932,2]
[328642401,1717659053313,-200.0,0.0002932,2]
[328642402,1717659053323,-151.0,0.0002938,7]
[328642403,1717659053332,-151.0,0.0002938,7]
[328642404,1717659053341,-828.440947,0.0002938,7]
[328642405,1717659053350,-357.085294,0.0002938,7]
[328642406,1717659053359,-151.0,0.0002938,7]
[328642407,1717659053369,-357.085294,0.0002938,7]
[328642408,1717659053378,-350.0,0.0002938,7]
[328642409,1717659053388,-1523.119791,0.0002938,7]
[328642410,1717659053397,-350.0,0.0002938,7]
[328642411,1717659053406,-1523.119791,0.0002938,7]
[328642412,1717659053416,-151.0,0.0002938,7]
[328642413,1717659053425,-276.544958,0.0002938,7]
[328642414,1717659053434,-276.544958,0.0002938,7]
[328642415,1717659053444,-151.0,0.0002938,7]
[328642416,1717659053454,-151.0,0.0002938,7]
[328642417,1717659053463,-151.0,0.0002938,7]
[328642418,1717659053472,-151.0,0.0002938,7]
[328642419,1717659053481,-266.767742,0.0002938,7]
[328642420,1717659053491,-302.076235,0.0002938,7]
[328642421,1717659053500,-302.076235,0.0002938,7]
[328642422,1717659053512,-999.620556,0.0002938,7]
[328642423,1717659053522,-214.855669,0.0002938,7]
[328642424,1717659053531,-999.620556,0.0002938,7]
[328642425,1717659053540,-214.855669,0.0002938,7]
[328642426,1717659053550,-178.253718,0.0002938,7]
[328642427,1717659053559,-151.0,0.0002938,7]
[328642428,1717659053568,-178.253718,0.0002938,7]
[328642429,1717659053578,-308.55583,0.0002938,7]
[328642430,1717659053587,-1753.57585,0.0002938,7]
[328642431,1717659053598,-308.55583,0.0002938,7]
[328642432,1717659053609,-1753.57585,0.0002938,7]
[328642433,1717659053620,-189.935219,0.0002938,7]
[328642434,1717659053631,-189.935219,0.0002938,7]
[328642435,1717659053640,-4436.0,0.0002938,15]
[328642436,1717659053649,-4436.0,0.0002939,15]
[328642437,1717659053658,-202.70232933,0.00029398,14]
[328642438,1717659053668,-500.0,0.000294,2]
[328642439,1717659053677,-2266.53354945,0.000294,4]
[328642440,1717659053688,-151.0,0.000294,7]
[328642441,1717659053697,-181.909966,0.000294,7]
[328642442,1717659053708,-153.719434,0.000294,7]
[328642443,1717659053718,-283.830669,0.000294,7]
[328642444,1717659053727,-202.905709,0.000294,7]
[328642445,1717659053736,-202.905709,0.000294,7]
[328642446,1717659053745,-152.887669,0.000294,7]
[328642447,1717659053755,-152.887669,0.000294,7]
[328642448,1717659053770,-6799.05034123,0.000294,2]
[328642449,1717659053779,-3775.16378331,0.00029477,2]
[328642450,1717659053789,-1365.49047384,0.00029478,2]
[328642451,1717659053798,-156.24395496,0.00029478,2]
[328642452,1717659053810,-2054.22929284,0.00029478,2]
[328642453,1717659053820,-161.37138785,0.00029478,2]
[328642454,1717659053830,-470.63848017,0.00029478,2]
[328642455,1717659053843,-1275.47662783,0.00029478,2]
[328642456,1717659053854,-23507.2236463,0.00029478,5]
[328642457,1717659053863,-718.75874464,0.00029479,2]
[328642458,1717659053872,-201956.36244425,0.0002948,7]
[328642459,1717659053886,-257.69726089,0.0002948,7]
[328642460,1717659053919,-299.99,0.00028,7]
[328642461,1717659053930,-69.990668,0.00028,7]
[328642462,1717659053940,-285.349332,0.0002948,7]
[328642463,1717659053951,-223978.27927612,0.0002948,7]
[328642464,1717659053986,-280.162191,0.00028,7]
[328642465,1717659053995,-3109.55572929,0.0002948,7]
[328642466,1717659054007,-795.00263647,0.0002948,7]
[328642467,1717659054021,-10602.38324138,0.0002948,7]
[328642468,1717659054036,-1722.88429448,0.0002948,7]
[328642469,1717659054943,-1056.77900202,0.000139,2]
[328642470,1717659054953,-361.667,0.00019892,2]
[328642471,1717659054962,-369.980668,0.00024503,7]
[328642472,1717659054971,-369.980668,0.00025,7]
[328642473,1717659054981,-369.980668,0.00027,7]
[328642474,1717659054990,-150.0,0.00027951,2]
[328642475,1717659054999,-150.0,0.00027959,2]
[328642476,1717659055008,-150.0,0.00027993,2]
[328642477,1717659055018,-369.980668,0.00028,7]
[328642478,1717659055027,-150.0,0.00028011,2]
[328642479,1717659055037,-150.0,0.00028016,2]
[328642480,1717659055046,-150.0,0.0002807,2]
[328642481,1717659055055,-150.0,0.00028094,2]
[328642482,1717659055064,-150.0,0.00028103,2]
[328642483,1717659055073,-150.0,0.00028128,2]
[328642484,1717659055083,-150.0,0.00028131,2]
[328642485,1717659055091,-150.0,0.00028133,2]
[328642486,1717659055100,-150.0,0.00028139,2]
[328642487,1717659055110,-150.0,0.00028146,2]
[328642488,1717659055120,-150.0,0.00028155,2]
[328642489,1717659055130,-150.0,0.00028161,2]
[328642490,1717659055140,-150.0,0.00028162,2]
[328642491,1717659055150,-150.0,0.00028186,2]
[328642492,1717659055160,-150.0,0.00028189,2]
[328642493,1717659055170,-150.0,0.00028192,2]
[328642494,1717659055179,-150.0,0.00028205,2]
[328642495,1717659055188,-150.0,0.00028222,2]
[328642496,1717659055198,-150.0,0.00028223,2]
[328642497,1717659055208,-150.0,0.00028225,2]
[328642498,1717659055218,-150.0,0.00028239,2]
[328642499,1717659055227,-150.0,0.00028254,2]
[328642500,1717659055236,-150.0,0.00028263,2]
[328642501,1717659055245,-215.09336921,0.00028272,2]
[328642502,1717659055255,-1235.24672353,0.00028272,2]
[328642503,1717659055265,-150.0,0.00028277,2]
[328642504,1717659055274,-150.0,0.00028286,2]
[328642505,1717659055284,-150.0,0.0002829,2]
[328642506,1717659055293,-150.0,0.00028311,2]
[328642507,1717659055303,-150.0,0.00028331,2]
[328642508,1717659055312,-150.0,0.0002834,2]
[328642509,1717659055322,-150.0,0.00028342,2]
[328642510,1717659055331,-150.0,0.00028372,2]
[328642511,1717659055340,-150.0,0.00028377,2]
[328642512,1717659055351,-150.0,0.00028377,2]
[328642513,1717659055360,-150.0,0.00028386,2]
[328642514,1717659055370,-150.0,0.00028395,2]
[328642515,1717659055379,-150.0,0.00028399,2]
[328642516,1717659055389,-150.0,0.00028411,2]
[328642517,1717659055533,-150.0,0.00028428,2]
[328642518,1717659055582,-150.0,0.0002843,2]
[328642519,1717659055592,-150.0,0.00028458,2]
[328642520,1717659055603,-150.0,0.00028465,2]
[328642521,1717659055614,-150.0,0.00028468,2]
[328642522,1717659055625,-150.0,0.00028469,2]
[328642523,1717659055635,-150.0,0.00028477,2]
[328642524,1717659055647,-150.0,0.00028492,2]
[328642525,1717659055657,-150.0,0.00028519,2]
[328642526,1717659055669,-150.0,0.0002852,2]
[328642527,1717659055679,-150.0,0.00028524,2]
[328642528,1717659055689,-150.0,0.00028541,2]
[328642529,1717659055700,-150.0,0.00028545,2]
[328642530,1717659055711,-150.0,0.00028548,2]
[328642531,1717659055721,-150.0,0.00028568,2]
[328642532,1717659055731,-150.0,0.00028593,2]
[328642533,1717659055742,-150.0,0.00028599,2]
[328642534,1717659055753,-150.0,0.000286,2]
[328642535,1717659055767,-150.0,0.00028603,2]
[328642536,1717659055777,-150.0,0.00028605,2]
[328642537,1717659055786,-150.0,0.00028605,2]
[328642538,1717659055797,-150.0,0.00028622,2]
[328642539,1717659055808,-150.0,0.00028623,2]
[328642540,1717659055818,-150.0,0.00028625,2]
[328642541,1717659055828,-150.0,0.00028635,2]
[328642542,1717659055839,-150.0,0.0002864,2]
[328642543,1717659055849,-150.0,0.00028642,2]
[328642544,1717659055859,-150.0,0.00028651,2]
[328642545,1717659055869,-150.0,0.00028653,2]
[328642546,1717659055879,-150.0,0.00028661,2]
[328642547,1717659055888,-150.0,0.00028666,2]
[328642548,1717659055898,-150.0,0.00028674,2]
[328642549,1717659055908,-150.0,0.0002869,2]
[328642550,1717659055918,-150.0,0.00028695,2]
[328642551,1717659055927,-150.0,0.00028703,2]
[328642552,1717659055937,-150.0,0.00028737,2]
[328642553,1717659055947,-150.0,0.00028737,2]
[328642554,1717659055957,-150.0,0.00028765,2]
[328642555,1717659055967,-150.0,0.00028766,2]
[328642556,1717659055977,-150.0,0.00028774,2]
[328642557,1717659055987,-150.0,0.00028786,2]
[328642558,1717659055996,-150.0,0.00028794,2]